[Event "XI Paracin Festival 2018"]
[Site "Paracin"]
[Date "2018.07.13"]
[Round "9"]
[White "Cvetkovic, Nemanja"]
[Black "Kulkarni, Chinmay"]
[Result "0-1"]
[ECO "D12"]
[WhiteElo "2278"]
[BlackElo "2336"]
[Annotator "NA"]
[PlyCount "66"]
[EventDate "2018.07.06"]
[EventType "swiss"]
[EventCountry "SRB"]
[SourceTitle "playchess.com"]
[Source "ChessBase"]
[SourceQuality "1"]
[TimeControl "5400+30"]

1. d4 {[%emt 0:00:00]} d5 {[%emt 0:03:21]} 2. c4 {[%emt 0:00:00]} c6 {[%emt 0:00:06]} 3. Nf3 {[%emt 0:00:00]} Nf6 {[%emt 0:00:05]} 4. e3 {[%emt 0:00:00]} Bf5 {[%emt 0:00:06]} 5. Nc3 {[%emt 0:00:20]} e6 {[%emt 0:00:03]} 6. Bd3 {[%emt 0:03:01]} Bxd3 {[%emt 0:01:27]} 7. Qxd3 {[%emt 0:00:06]} Be7 {[%emt 0:00:26]} 8. O-O {[%emt 0:00:49]} O-O {[%emt 0:00:08]} 9. b3 {[%emt 0:06:18]} Nbd7 {[%emt 0:00:14]} 10. Bb2 {[%emt 0:00:31]} Qa5 {[%emt 0:01:38]} 11. e4 {[%emt 0:04:10]} dxe4 {[%emt 0:00:59]} 12. Nxe4 {[%emt 0:00:03]} Rad8 {[%emt 0:00:15]} 13. Rfd1 {[%emt 0:10:50]} Rfe8 {[%emt 0:01:18]} 14. Rd2 {[%emt 0:08:45]} e5 {[%emt 0:05:20]} 15. Bc3 {[%emt 0:19:18]} Qb6 {[%emt 0:02:05]} 16. Nxf6+ {[%emt 0:06:35]} Bxf6 {[%emt 0:02:16]} 17. Re1 {[%emt 0:02:45]} h6 {[%emt 0:08:35]} 18. Kf1 {[%emt 0:11:16]} exd4 {[%emt 0:06:50]} 19. Rxe8+ {[%emt 0:00:41]} Rxe8 {[%emt 0:00:02]} 20. Bxd4 {[%emt 0:00:40]} Nc5 {[%emt 0:00:10]} 21. Qf5 {[%emt 0:03:09]} Bxd4 {[%emt 0:01:51]} 22. Rxd4 {[%emt 0:00:01]} Qa5 {[%emt 0:05:27]} 23. g3 {[%emt 0:05:58]} g6 {[%emt 0:07:14]} 24. Qf6 {[%emt 0:02:40]} Ne4 {[%emt 0:11:09]} 25. Qf4 {[%emt 0:02:35]} g5 {[%emt 0:01:42]} 26. Qg4 {[%emt 0:00:07]} Nf6 {[%emt 0:00:07]} 27. Qh3 {[%emt 0:06:08]} Kg7 {[%emt 0:04:27]} 28. Kg2 {[%emt 0:02:59]} Re2 {[%emt 0:04:47]} 29. Qc8 {[%emt 0:03:14]} Qxa2 {[%emt 0:00:28]} 30. Qf5 {[%emt 0:00:43]} Rxf2+ {[%emt 0:00:21]} 31. Kg1 {[%emt 0:00:09]} Rg2+ {[%emt 0:00:48]} 32. Kh1 {[%emt 0:00:07]} Qf2 {[%emt 0:00:29]} 33. Qd3 {[%emt 0:00:54]} g4 {[%emt 0:02:13]} 0-1

[Event "XI Paracin Festival 2018"]
[Site "Paracin"]
[Date "2018.07.13"]
[Round "9"]
[White "Bratkovic, Jakob"]
[Black "Ozen, Bahadir"]
[Result "1/2-1/2"]
[ECO "B06"]
[WhiteElo "2253"]
[BlackElo "2317"]
[Annotator "NA"]
[PlyCount "103"]
[EventDate "2018.07.06"]
[EventType "swiss"]
[EventCountry "SRB"]
[SourceTitle "playchess.com"]
[Source "ChessBase"]
[SourceQuality "1"]
[TimeControl "5400+30"]

1. e4 {[%emt 0:01:55]} g6 {[%emt 0:00:07]} 2. d4 {[%emt 0:00:08]} Bg7 {[%emt 0:00:06]} 3. Nc3 {[%emt 0:00:06]} c6 {[%emt 0:00:04]} 4. h3 {[%emt 0:00:10]} d5 {[%emt 0:01:03]} 5. Nf3 {[%emt 0:02:32]} Nh6 {[%emt 0:01:39]} 6. Bf4 {[%emt 0:01:29]} f6 {[%emt 0:02:09]} 7. exd5 {[%emt 0:00:13]} cxd5 {[%emt 0:00:06]} 8. Nb5 {[%emt 0:00:06]} Na6 {[%emt 0:00:43]} 9. c4 {[%emt 0:01:23]} O-O {[%emt 0:00:53]} 10. cxd5 {[%emt 0:03:31]} Qxd5 {[%emt 0:01:06]} 11. Nc3 {[%emt 0:03:02]} Qf5 {[%emt 0:11:19]} 12. Qd2 {[%emt 0:08:03]} g5 {[%emt 0:03:06]} 13. Be3 {[%emt 0:00:06]} Nf7 {[%emt 0:04:40]} 14. Bd3 {[%emt 0:06:06]} Qa5 {[%emt 0:00:18]} 15. O-O {[%emt 0:01:21]} e6 {[%emt 0:04:33]} 16. a3 {[%emt 0:06:58]} h6 {[%emt 0:02:08]} 17. b4 {[%emt 0:08:16]} Qd8 {[%emt 0:00:01]} 18. Qa2 {[%emt 0:00:13]} Nc7 {[%emt 0:00:42]} 19. Bc4 {[%emt 0:00:58]} Nd6 {[%emt 0:04:07]} 20. Bb3 {[%emt 0:01:05]} b6 {[%emt 0:00:35]} 21. Rad1 {[%emt 0:02:19]} Kh8 {[%emt 0:01:56]} 22. Rfe1 {[%emt 0:02:01]} Re8 {[%emt 0:05:07]} 23. Bc1 {[%emt 0:01:50]} Qd7 {[%emt 0:01:39]} 24. Ne5 {[%emt 0:04:20]} Qd8 {[%emt 0:01:20]} 25. Ne4 {[%emt 0:06:36]} Kg8 {[%emt 0:00:19]} 26. d5 {[%emt 0:07:50]} exd5 {[%emt 0:02:51]} 27. Rxd5 {[%emt 0:00:35]} Nxd5 {[%emt 0:01:06]} 28. Bxd5+ {[%emt 0:00:05]} Kh7 {[%emt 0:00:24]} 29. Bxa8 {[%emt 0:07:16]} Rxe5 {[%emt 0:01:34]} 30. Bb2 {[%emt 0:01:43]} Re8 {[%emt 0:03:03]} 31. Rd1 {[%emt 0:00:45]} Re6 {[%emt 0:01:09]} 32. Bd5 {[%emt 0:01:37]} Qe7 {[%emt 0:01:00]} 33. Bxe6 {[%emt 0:01:20]} Bxe6 {[%emt 0:00:02]} 34. Qb1 {[%emt 0:00:18]} Bf5 {[%emt 0:00:01]} 35. f3 {[%emt 0:04:18]} Nxe4 {[%emt 0:00:01]} 36. fxe4 {[%emt 0:00:07]} Bxe4 {[%emt 0:00:01]} 37. Re1 {[%emt 0:00:17]} f5 {[%emt 0:00:01]} 38. Qa1 {[%emt 0:00:08]} Bf8 {[%emt 0:00:37]} 39. Bf6 {[%emt 0:00:40]} Qc7 {[%emt 0:00:11]} 40. Be5 {[%emt 0:01:21]} Qc2 {[%emt 0:01:28]} 41. Qb2 {[%emt 0:00:28]} Qc6 {[%emt 0:00:53]} 42. Rc1 {[%emt 0:00:39]} Qd5 {[%emt 0:00:01]} 43. Rc8 {[%emt 0:04:09]} Qd1+ {[%emt 0:03:28]} 44. Kh2 {[%emt 0:02:23]} Bd6 {[%emt 0:00:01]} 45. Bxd6 {[%emt 0:00:16]} Qxd6+ {[%emt 0:00:01]} 46. Kg1 {[%emt 0:00:15]} Kg6 {[%emt 0:01:50]} 47. Qc3 {[%emt 0:01:44]} Qd1+ {[%emt 0:03:44]} 48. Kf2 {[%emt 0:02:31]} Qh1 {[%emt 0:00:42]} 49. Qg3 {[%emt 0:01:11]} Kh5 {[%emt 0:00:26]} 50. Rg8 {[%emt 0:01:47]} Qd1 {[%emt 0:02:55]} 51. Qc3 {[%emt 0:02:05]} Qh1 {[%emt 0:01:06]} 52. Qg3 {[%emt 0:00:50]} 1/2-1/2

[Event "XI Paracin Festival 2018"]
[Site "Paracin"]
[Date "2018.07.13"]
[Round "9"]
[White "Peycheva, Gergana"]
[Black "Brankovic, Dejan"]
[Result "1-0"]
[ECO "A67"]
[WhiteElo "2157"]
[BlackElo "2377"]
[Annotator "NA"]
[PlyCount "97"]
[EventDate "2018.07.06"]
[EventType "swiss"]
[EventCountry "SRB"]
[SourceTitle "playchess.com"]
[Source "ChessBase"]
[SourceQuality "1"]
[TimeControl "5400+30"]

1. d4 {[%emt 0:00:00]} Nf6 {[%emt 0:00:00]} 2. c4 {[%emt 0:00:45]} c5 3. d5 {[%emt 0:02:11]} e6 {[%emt 0:01:02]} 4. Nc3 {[%emt 0:01:34]} exd5 {[%emt 0:00:07]} 5. cxd5 {[%emt 0:00:32]} d6 {[%emt 0:00:08]} 6. e4 {[%emt 0:02:16]} g6 {[%emt 0:01:47]} 7. f4 {[%emt 0:02:38]} Bg7 {[%emt 0:00:05]} 8. Bb5+ {[%emt 0:00:17]} Nfd7 {[%emt 0:00:04]} 9. Bd3 {[%emt 0:00:56]} O-O {[%emt 0:09:55]} 10. Nf3 {[%emt 0:04:19]} Na6 {[%emt 0:01:12]} 11. O-O {[%emt 0:01:17]} Nc7 {[%emt 0:03:29]} 12. a4 {[%emt 0:02:17]} a6 {[%emt 0:03:40]} 13. Be3 {[%emt 0:03:44]} Nf6 {[%emt 0:08:24]} 14. h3 {[%emt 0:10:15]} Rb8 {[%emt 0:10:43]} 15. a5 {[%emt 0:05:05]} Re8 {[%emt 0:05:07]} 16. Bf2 {[%emt 0:04:13]} b5 {[%emt 0:02:46]} 17. axb6 {[%emt 0:00:33]} Rxb6 {[%emt 0:00:07]} 18. Qd2 {[%emt 0:02:09]} Bb7 {[%emt 0:13:14]} 19. Rfe1 {[%emt 0:06:34]} Rb4 {[%emt 0:02:50]} 20. Rad1 {[%emt 0:06:49]} Qb8 {[%emt 0:07:26]} 21. Bb1 {[%emt 0:07:54]} Ba8 {[%emt 0:01:01]} 22. e5 {[%emt 0:06:04]} Rxb2 {[%emt 0:01:25]} 23. Qc1 {[%emt 0:01:54]} Nd7 {[%emt 0:04:57]} 24. exd6 {[%emt 0:02:53]} Rxe1+ {[%emt 0:00:52]} 25. Nxe1 {[%emt 0:01:30]} Ne8 {[%emt 0:00:19]} 26. Na4 {[%emt 0:02:31]} Rxf2 {[%emt 0:02:13]} 27. Kxf2 {[%emt 0:01:40]} Qb4 {[%emt 0:01:22]} 28. Bc2 {[%emt 0:01:57]} Nxd6 {[%emt 0:01:45]} 29. Nf3 {[%emt 0:02:17]} Qc4 {[%emt 0:09:12]} 30. Qd2 {[%emt 0:02:29]} Nf6 {[%emt 0:00:47]} 31. Qd3 {[%emt 0:01:05]} Qxf4 {[%emt 0:01:15]} 32. Nxc5 {[%emt 0:02:01]} Bxd5 33. Kg1 {[%emt 0:01:12]} Nf5 {[%emt 0:02:23]} 34. Bb3 {[%emt 0:03:08]} Ne3 {[%emt 0:03:02]} 35. Rd2 {[%emt 0:03:40]} Bf8 {[%emt 0:01:05]} 36. Nd7 {[%emt 0:02:44]} Nxd7 {[%emt 0:01:20]} 37. Bxd5 {[%emt 0:00:08]} Bc5 {[%emt 0:00:09]} 38. Kh1 {[%emt 0:01:09]} Nf6 {[%emt 0:00:14]} 39. Qc3 {[%emt 0:01:27]} Nf1 {[%emt 0:02:40]} 40. Qxc5 {[%emt 0:02:00]} Nxd2 {[%emt 0:00:02]} 41. Bxf7+ {[%emt 0:01:12]} Kxf7 {[%emt 0:00:55]} 42. Ng5+ {[%emt 0:00:29]} Ke8 {[%emt 0:00:05]} 43. Qc6+ {[%emt 0:00:25]} Nd7 {[%emt 0:01:20]} 44. Qe6+ {[%emt 0:00:09]} Kd8 {[%emt 0:00:31]} 45. Qg8+ {[%emt 0:00:02]} Ke7 46. Qe6+ Kf8 47. Nxh7+ Kg7 48. Qxd7+ Kh6 {[%emt 0:02:17]} 49. Nf8 1-0

[Event "XI Paracin Festival 2018"]
[Site "Paracin"]
[Date "2018.07.13"]
[Round "9"]
[White "Tugstumur, Yesuntumur"]
[Black "Asadli, Vugar"]
[Result "1/2-1/2"]
[ECO "E15"]
[WhiteElo "2116"]
[BlackElo "2478"]
[Annotator "ChessBase"]
[PlyCount "75"]
[EventDate "2018.07.06"]
[EventType "swiss"]
[EventCountry "SRB"]
[SourceTitle "playchess.com"]
[Source "ChessBase"]
[SourceQuality "1"]
[TimeControl "5400+30"]

1. d4 {[%emt 0:00:00]} Nf6 {[%emt 0:01:31]} 2. c4 {[%emt 0:00:00]} e6 {[%emt 0:01:40]} 3. Nf3 {[%emt 0:00:07]} b6 {[%emt 0:00:08]} 4. g3 {[%emt 0:00:15]} Ba6 {[%emt 0:00:08]} 5. Qc2 {[%emt 0:00:07]} c5 {[%emt 0:03:11]} 6. d5 {[%emt 0:01:09]} exd5 {[%emt 0:03:40]} 7. cxd5 {[%emt 0:00:06]} g6 {[%emt 0:00:19]} 8. e4 {[%emt 0:06:17]} Bg7 {[%emt 0:04:02]} 9. Bxa6 {[%emt 0:00:38]} Nxa6 {[%emt 0:00:08]} 10. Qc4 {[%emt 0:05:19]} Qc8 {[%emt 0:06:12]} 11. Nc3 {[%emt 0:03:33]} Nb4 {[%emt 0:06:31]} 12. O-O {[%emt 0:02:00]} O-O {[%emt 0:01:52]} 13. e5 {[%emt 0:01:55]} b5 {[%emt 0:00:41]} 14. Nxb5 {[%emt 0:20:21]} Nfxd5 {[%emt 0:00:09]} 15. a3 {[%emt 0:02:09]} Nb6 {[%emt 0:00:10]} 16. Qf4 {[%emt 0:05:38]} Nd3 {[%emt 0:04:50]} 17. Qe4 {[%emt 0:02:06]} c4 {[%emt 0:00:26]} 18. a4 {[%emt 0:10:20]} Qc6 {[%emt 0:06:44]} 19. Qxc6 {[%emt 0:01:19]} dxc6 {[%emt 0:00:09]} 20. Nbd4 {[%emt 0:00:09]} Rac8 {[%emt 0:00:48]} 21. a5 {[%emt 0:01:55]} Nd7 {[%emt 0:01:21]} 22. Ra4 {[%emt 0:03:47]} N7xe5 {[%emt 0:01:50]} 23. Nxe5 {[%emt 0:00:07]} Nxe5 {[%emt 0:00:06]} 24. Nc2 {[%emt 0:03:19]} Rfd8 {[%emt 0:05:34]} 25. Na3 {[%emt 0:03:09]} Rd5 {[%emt 0:00:59]} 26. a6 {[%emt 0:01:54]} c5 {[%emt 0:03:32]} 27. Nxc4 {[%emt 0:04:34]} Rc6 {[%emt 0:06:25]} 28. b3 {[%emt 0:03:35]} Nd3 {[%emt 0:04:24]} 29. Be3 {[%emt 0:04:29]} h5 {[%emt 0:01:39]} 30. Rd1 {[%emt 0:01:32]} Bc3 {[%emt 0:01:20]} 31. Kf1 {[%emt 0:01:01]} Nb4 {[%emt 0:00:48]} 32. Rxd5 {[%emt 0:00:55]} Nxd5 {[%emt 0:00:01]} 33. Ke2 {[%emt 0:00:51]} Nc7 {[%emt 0:00:47]} 34. Kd3 {[%emt 0:00:14]} Bf6 {[%emt 0:00:43]} 35. Na5 {[%emt 0:00:30]} Rxa6 {[%emt 0:03:12]} 36. Bxc5 {[%emt 0:00:28]} Ne6 {[%emt 0:00:19]} 37. Be3 {[%emt 0:00:56]} Rd6+ {[%emt 0:00:36]} 38. Ke4 {[%emt 0:01:44]} 1/2-1/2